bitfinex/quotes_ETHUSD_20251021
["timestamp","ask_amount","ask_price","bid_price","bid_amount"]
[1761076893070,2.06208,4001.9,4000.9,2.95761673]
[1761076893279,0.66378,4001.9,4001.2,2.49920153]
[1761076893642,2.49861115,4002.3,4001.2,2.49920153]
[1761076893643,2.134325,4002.7,4001.3,0.48319187]
[1761076893869,1.5552,4002.8,4001.7,2.49892936]
[1761076893870,3.259,4002.6,4001.7,2.49892936]
[1761076894068,0.1579,4002.9,4001.8,0.02498875]
[1761076894268,3.26,4002.8,4002.3,2.49855364]
[1761076894469,0.39183847,4003.5,4001.5,2.49906285]
[1761076894668,4.95608,4003.2,4002.5,2.49838977]
[1761076894858,3.26,4003.1,4001.6,0.75392629]
[1761076895052,1.5552,4003.0,4002.7,2.49830298]
[1761076895266,3.26,4003.1,4002.7,2.49826711]
[1761076895479,3.26,4003.1,4002.8,2.95640169]
[1761076895666,3.26,4003.1,4001.7,4.9245]
[1761076895667,0.1585,4002.9,4001.8,0.4582]
[1761076895879,0.50688,4002.8,4001.8,2.95705794]
[1761076896052,0.50688,4002.8,4002.1,2.4986595]
[1761076896379,0.50688,4002.8,4002.2,2.49860703]
[1761076896572,0.50688,4002.9,4002.3,2.4985597]
[1761076896768,0.50688,4002.9,4001.7,0.2245]
[1761076896769,0.50688,4002.9,4001.9,2.49876503]
[1761076896981,0.50688,4002.5,4001.7,0.6827]
[1761076897178,3.259,4002.4,4001.7,0.6827]
[1761076897561,3.259,4002.4,4001.8,2.4988755]
[1761076897763,3.259,4002.4,4001.8,2.49886432]
[1761076898156,3.259,4002.4,4002.0,2.49873419]
[1761076898458,3.259,4002.4,4001.7,0.6827]
[1761076898653,3.259,4002.4,4001.4,0.2245]
[1761076898654,4.933379,4002.2,4001.4,0.2245]
[1761076898976,0.50688,4002.1,4000.8,0.2245]
[1761076899178,0.50688,4002.1,4001.1,2.49930992]
[1761076899396,0.0996,4003.1,4001.0,2.49937515]
[1761076899551,0.50688,4002.6,4001.2,0.4582]
[1761076899750,3.257,4002.5,4002.1,2.49868222]
[1761076899969,1.5552,4002.3,4002.2,2.49858184]
[1761076900398,1.5552,4002.3,4000.0,4.27965593]
[1761076900576,1.5552,4002.3,4001.7,2.49889261]
[1761076900899,1.5552,4002.3,4001.8,2.49885404]
[1761076901397,1.5552,4002.3,4002.2,2.72312575]
[1761076901559,1.5552,4002.3,4002.2,0.2245]
[1761076901959,1.5552,4002.3,4002.2,2.72312575]
[1761076902501,1.5552,4002.3,4002.1,2.49866813]
[1761076902813,1.5552,4002.3,4001.4,0.2245]
[1761076902971,1.5552,4002.3,4001.9,2.49876862]
[1761076903372,1.5552,4002.3,4002.0,2.49874107]
[1761076903922,0.50688,4002.0,4000.8,0.2245]
[1761076904071,0.50688,4002.0,4000.5,0.4582]
[1761076904072,0.50688,4001.6,4000.5,0.4582]
[1761076904267,1.5552,4002.0,4000.5,0.4582]
[1761076904268,1.7148,4002.5,4001.2,2.49922204]
[1761076904479,1.5552,4003.0,4000.9,2.49938957]
[1761076904480,3.264,4002.4,4000.9,2.49938957]
[1761076904767,0.50688,4002.7,4001.9,2.49881099]
[1761076904967,2.06208,4002.5,4002.0,0.2245]
[1761076905272,0.66427278,4003.6,4002.4,2.49850089]
[1761076905602,3.271,4003.7,4003.1,2.49804673]
[1761076905807,3.271,4003.7,4002.5,0.4582]
[1761076906009,3.271,4003.7,4002.6,2.49837605]
[1761076906213,1.5552,4003.6,4002.9,2.49817128]
[1761076906794,1.5552,4003.6,4003.1,2.4980601]
[1761076906968,1.5552,4003.6,4002.9,2.49812671]
[1761076907183,1.5552,4003.6,4003.0,2.49812334]
[1761076907496,1.5552,4003.6,4002.4,0.4582]
[1761076907497,1.5552,4003.6,4003.2,2.49794899]
[1761076907720,0.2553,4004.6,4002.6,0.02498376]
[1761076907872,2.49731786,4004.3,4003.3,2.49788196]
[1761076908186,3.27,4004.5,4002.1,0.2245]
[1761076908187,0.50688,4003.1,4002.1,0.2245]
[1761076908388,3.00483538,4003.3,4002.2,0.2245]
[1761076908389,1.5552,4002.9,4002.2,0.2245]
[1761076908699,1.5552,4002.7,4002.2,0.2245]
[1761076908899,3.272,4002.6,4002.2,0.2245]
[1761076909403,3.272,4002.6,4002.0,2.49873382]
[1761076909699,3.272,4002.6,4001.8,0.4582]
[1761076909872,3.272,4002.6,4002.2,2.4985855]
[1761076910072,1.5552,4003.4,4002.2,2.4985855]
[1761076910073,0.0996,4003.7,4002.3,0.4582]
[1761076910273,0.88569704,4004.3,4002.4,2.49848779]
[1761076910274,2.06208,4003.2,4002.4,2.49848779]
[1761076910474,0.50688,4003.2,4002.4,2.49848779]
[1761076910726,1.5552,4003.0,4002.5,0.48318438]
[1761076910907,1.5552,4002.8,4002.1,0.2245]
[1761076911228,1.5552,4002.8,4002.7,2.49831363]
[1761076911903,1.5552,4002.8,4002.1,0.2245]
[1761076912290,3.591218,4003.4,4002.3,2.49853227]
[1761076912497,2.082,4003.3,4002.4,2.49849141]
[1761076912817,2.082,4003.3,4002.8,2.49820892]
[1761076912989,2.082,4003.3,4002.8,0.4582]
[1761076913304,2.082,4003.3,4002.8,2.49823255]
[1761076913814,0.001,4003.0,4002.8,2.49823255]
[1761076914131,0.001,4003.0,4002.9,2.96088881]
[1761076914292,0.001,4003.0,4002.9,3.50680095]
[1761076915606,0.001,4003.0,4002.9,2.96088881]
[1761076916414,0.001,4003.0,4002.9,2.49818881]
[1761076916984,0.001,4003.0,4002.9,2.96088881]
[1761076917988,0.001,4003.0,4002.9,2.49818881]
[1761076918193,0.001,4003.0,4002.9,2.96088881]
[1761076919003,0.001,4003.0,4002.9,0.4627]
[1761076919181,0.001,4003.0,4002.8,2.49823926]
[1761076919592,0.001,4003.0,4002.6,2.49837445]
[1761076919886,3.266,4003.0,4002.6,2.49837445]
[1761076920086,3.266,4003.0,4002.6,2.96107445]
[1761076920380,3.266,4003.0,4001.4,7.95033682]
[1761076920381,3.266,4003.0,4001.6,0.4627]
[1761076920587,0.50688,4002.8,4001.6,0.4627]
[1761076920787,2.49847588,4002.5,4001.7,2.72343572]
[1761076921087,3.264,4002.4,4001.7,2.72343572]
[1761076921389,5.76251664,4002.4,4001.7,2.72343572]
[1761076921587,13.01116,4002.3,4001.3,0.2192]
[1761076921910,0.1558,4002.9,4001.4,0.02499125]
[1761076922215,0.66527278,4003.0,4001.4,0.02499125]
[1761076922216,0.001,4003.0,4002.4,2.49844623]
[1761076922416,0.001,4003.0,4002.9,2.49818881]
[1761076922792,0.001,4003.0,4002.9,2.96088881]
[1761076922992,0.001,4003.0,4002.9,2.98587069]
[1761076923706,0.001,4003.0,4002.9,2.96088881]
[1761076925423,0.001,4003.0,4002.6,0.4627]
[1761076925591,0.001,4003.0,4001.3,0.2192]
[1761076925592,30.0,4002.7,4001.3,0.2192]
[1761076925787,2.49850089,4002.4,4001.3,2.71838011]
[1761076926117,3.00563947,4002.0,4001.3,0.2192]
[1761076926319,3.265,4001.9,4001.3,0.2192]
[1761076926522,0.81897278,4002.9,4001.4,0.48769125]
[1761076926815,1.5552,4002.6,4001.7,2.49891635]
[1761076927211,4.05355709,4002.7,4001.4,0.4627]
[1761076927523,1.5552,4002.7,4002.1,2.49868017]
[1761076927823,0.001,4003.0,4001.5,0.4627]
[1761076927997,0.001,4003.0,4002.9,2.71738881]
[1761076928324,0.001,4003.0,4002.9,2.74237069]
[1761076928526,0.001,4003.0,4002.9,3.18008881]
[1761076930500,0.001,4003.0,4002.9,3.20507069]
[1761076930699,0.001,4003.0,4002.9,3.18008881]
[1761076931151,0.001,4003.0,4002.9,3.77291093]
[1761076931449,0.001,4003.0,4002.9,3.74792905]
[1761076931950,0.001,4003.0,4002.9,3.77291093]
[1761076932307,0.001,4003.0,4002.9,3.74792905]
[1761076933347,0.001,4003.0,4002.9,3.18008881]
[1761076933924,0.001,4003.0,4002.9,3.20507069]
[1761076934113,0.001,4003.0,4002.9,3.18008881]
[1761076934513,0.001,4003.0,4002.9,3.20507069]
[1761076934948,0.001,4003.0,4002.9,3.18008881]
[1761076935149,0.001,4003.0,4002.9,7.01092905]
[1761076939112,0.001,4003.0,4002.9,3.74792905]
[1761076939313,0.001,4003.0,4002.9,2.71738881]
[1761076940311,0.001,4003.0,4002.9,3.19098881]
[1761076940536,0.001,4003.0,4002.9,3.21597069]
[1761076940959,0.001,4003.0,4002.9,2.49818881]
[1761076941463,0.001,4003.0,4002.9,2.52317069]
[1761076941668,0.001,4003.0,4002.9,3.82481508]
[1761076942345,0.001,4003.0,4002.9,3.7998332]
[1761076943533,0.001,4003.0,4002.9,2.49818881]
[1761076943765,0.001,4003.0,4002.5,0.2179]
[1761076943946,0.001,4003.0,4002.0,1.5552]
[1761076943947,0.001,4003.0,4002.2,3.4761]
[1761076944152,0.1536,4002.9,4002.8,2.49821207]
[1761076944335,0.001,4003.0,4002.9,2.49818881]
[1761076945367,0.001,4003.0,4002.2,3.4761]
[1761076945555,0.001,4003.0,4002.9,2.49818881]
[1761076946940,0.001,4003.0,4002.8,2.49821049]
[1761076947135,0.001,4003.0,4002.9,2.49818881]
[1761076947550,0.001,4003.0,4002.2,3.9125]
[1761076947750,0.001,4003.0,4001.9,2.49881306]
[1761076947751,0.2526,4003.0,4001.9,2.49881306]
[1761076947955,0.2526,4003.0,4002.6,2.49836787]
[1761076948238,0.2526,4003.0,4002.8,2.49824195]
[1761076948239,0.001,4003.0,4002.8,2.49824195]
[1761076948448,0.001,4003.0,4002.1,0.2191]
[1761076948449,0.001,4003.0,4002.9,2.49818881]
[1761076948686,0.001,4003.0,4002.9,2.52317069]
[1761076948849,0.001,4003.0,4002.9,2.95957069]
[1761076949050,0.001,4003.0,4002.9,3.80567492]
[1761076949389,0.001,4003.0,4002.9,3.36927492]
[1761076949574,0.001,4003.0,4002.9,3.80567492]
[1761076951184,0.001,4003.0,4002.9,7.05867492]
[1761076953678,0.001,4003.0,4002.9,2.49818881]
[1761076953867,0.001,4003.0,4002.5,3.253]
[1761076954275,0.001,4003.0,4002.9,2.49818881]
[1761076954459,0.001,4003.0,4002.2,0.4364]
[1761076954771,0.001,4003.0,4001.0,0.4364]
[1761076954772,1.5552,4002.5,4001.0,0.4364]
[1761076955091,1.5552,4002.5,4000.3,19.23249421]
[1761076955092,0.50688,4002.4,4000.6,0.2191]
[1761076955414,0.16,4001.0,4000.1,2.4999375]
[1761076955559,2.06208,4002.2,4000.1,2.4999375]
[1761076955560,3.256,4001.2,4000.9,2.49943762]
[1761076955760,3.256,4001.2,4000.2,3.5311925]
[1761076955761,1.5552,4001.7,4000.2,3.50619375]
[1761076955984,2.06208,4001.7,4000.7,2.49952471]
[1761076956182,0.50688,4001.4,4000.0,0.002]
[1761076956424,2.49926118,4001.2,4000.4,2.49974155]
[1761076956824,0.1007,4001.3,4000.1,0.2191]
[1761076957181,2.49925022,4001.2,4000.5,2.4996868]
[1761076957385,2.59989571,4001.3,4000.5,2.4996868]
[1761076957606,2.758405,4001.2,4000.5,2.4996868]
[1761076957832,0.1007,4001.9,4000.6,0.02499625]
[1761076957984,2.49900039,4001.6,4000.1,0.61055]
[1761076958179,1.5552,4001.7,4000.1,0.61055]
[1761076958180,9.433934,4001.3,4000.2,0.63695986]
[1761076958390,0.1007,4001.2,4000.0,0.002]
[1761076958592,0.50688,4001.4,4000.7,2.49954653]
[1761076958789,0.60758,4001.4,4000.7,2.49954653]
[1761076958999,0.60758,4001.4,4000.8,2.49949629]
[1761076959203,0.60758,4001.4,4000.1,0.2191]
[1761076959204,0.1007,4001.4,4000.1,0.2191]
[1761076959406,3.258,4001.8,4001.2,2.49922745]
[1761076959619,1.5552,4001.7,4000.2,0.4364]
[1761076959791,1.5552,4001.7,4000.8,2.49944521]
[1761076959792,1.6559,4001.7,4000.8,2.49944521]
[1761076959991,1.6559,4001.7,4000.3,0.31574028]
[1761076959992,1.5552,4001.5,4000.3,0.31574028]
[1761076960209,0.1007,4001.6,4000.8,2.49949804]
[1761076960392,1.5552,4001.7,4000.2,0.4364]
[1761076960844,1.5552,4001.7,4001.2,2.49918878]
[1761076961050,1.5552,4001.7,4001.2,2.49919029]
[1761076961213,0.1007,4001.6,4000.2,0.4364]
[1761076961528,0.1007,4001.6,4000.8,2.49949582]
[1761076961744,0.1007,4001.6,4001.1,2.49930065]
[1761076962031,0.1007,4001.6,4001.2,2.49924746]
[1761076962238,0.1007,4001.6,4000.3,0.4364]
[1761076962390,0.1007,4001.6,4001.2,2.49922999]
[1761076962586,0.1007,4001.6,4000.9,2.49937651]
[1761076962791,0.1007,4001.6,4000.5,2.49968753]
[1761076963022,1.5552,4001.7,4000.6,0.68636875]
[1761076963455,1.6559,4001.7,4000.6,0.68636875]
[1761076963757,1.5552,4001.7,4000.7,2.49956257]
[1761076964054,1.5552,4001.7,4001.3,2.49914071]
[1761076964453,0.1007,4001.6,4001.1,2.49931041]
[1761076964745,0.1007,4001.6,4000.6,0.24996875]
[1761076964959,0.1007,4001.6,4000.7,0.2749635]
[1761076965447,0.1007,4001.6,4001.2,2.49923017]
[1761076965757,1.5552,4001.7,4001.3,2.49917373]
[1761076965923,2.49856018,4002.4,4001.7,2.49890672]
[1761076965924,0.50688,4002.4,4001.7,2.49890672]
[1761076966111,3.253,4002.3,4001.7,2.49892271]
[1761076966314,1.5552,4002.2,4001.7,2.49892271]
[1761076966618,1.6559,4002.2,4001.1,2.49926054]
[1761076966825,1.5552,4002.0,4000.6,2.49962505]
[1761076967032,0.1007,4002.1,4001.4,2.49911576]
[1761076967237,1.5552,4002.2,4000.7,1.05530251]
[1761076967436,1.5552,4002.2,4000.8,0.461395]
[1761076967612,1.5552,4002.2,4001.8,2.49883127]
[1761076967817,1.5552,4002.2,4000.8,0.461395]
[1761076967818,1.5552,4002.2,4001.6,2.49898537]
[1761076968145,4.05383851,4002.2,4001.5,2.49905771]
[1761076968442,0.1007,4002.1,4001.4,2.49911786]
[1761076968646,0.1007,4002.1,4001.5,2.49905678]
[1761076968814,0.1007,4002.1,4001.5,2.49904619]
[1761076969512,1.5552,4002.0,4001.4,2.49910759]
[1761076969814,2.498762,4002.0,4001.1,2.71840456]
[1761076970031,1.5552,4002.0,4001.4,2.49910271]
[1761076970644,0.001,4002.1,4001.5,2.49903968]
[1761076971143,2.49875062,4002.0,4001.1,0.2191]
[1761076971340,1.6559,4002.0,4001.1,2.49930499]
[1761076971543,0.1007,4001.9,4000.7,3.1184586]
[1761076971747,2.4990556,4001.6,4000.9,2.49943214]
[1761076971918,3.25,4001.5,4000.9,2.49943214]
[1761076972318,5.74906738,4001.5,4000.9,2.49943214]
[1761076972519,2.49921457,4001.3,4000.6,2.4995855]
[1761076972713,2.59991457,4001.3,4000.6,2.4995855]
[1761076973146,0.1554,4000.7,3999.4,0.4364]
[1761076973326,3.248,4000.6,4000.4,2.4997373]
[1761076973521,3.248,4000.6,4000.4,1.00191215]
[1761076973721,3.248,4000.6,4000.5,2.49968753]
[1761076973922,3.248,4000.6,4000.5,2.93798753]
[1761076974125,0.1548,4001.4,4000.1,2.71900922]
[1761076974333,1.5552,4001.2,4000.7,2.49950181]
[1761076974716,1.5552,4001.2,4000.8,2.4994893]
[1761076974922,1.5552,4001.2,4000.9,2.49939453]
[1761076975123,1.5552,4001.2,4001.0,2.49936638]
[1761076975529,3.248,4001.3,4000.7,0.4383]
[1761076975728,0.1577,4001.7,4000.8,0.4383]
[1761076975942,3.251,4001.6,4000.7,2.49954843]
[1761076976129,3.251,4001.6,4000.9,2.49939056]
[1761076976330,3.35,4001.6,4001.0,2.49931728]
[1761076976664,3.35,4001.6,4000.8,2.49950009]
[1761076976847,3.35,4001.6,4000.7,0.24995484]
[1761076977020,3.35,4001.6,4001.1,2.49926813]
[1761076977215,3.35,4001.6,4000.2,0.4383]
[1761076977216,0.099,4001.5,4000.2,0.4383]
[1761076977421,0.099,4001.5,4001.1,2.49926396]
[1761076978565,0.099,4001.5,4000.2,2.93813134]
[1761076978750,0.099,4001.5,4001.0,2.49937281]
[1761076979149,0.099,4001.5,4001.1,2.49931252]
[1761076980064,3.251,4001.6,4001.2,0.71377496]
[1761076980246,1.5552,4002.3,4001.4,2.4990855]
[1761076980566,1.5552,4001.9,4000.3,0.4383]
[1761076980771,1.5552,4001.9,4000.2,0.4383]
[1761076980958,0.1571,4001.8,4000.4,2.49970969]
[1761076981155,0.1571,4001.8,4000.3,2.49981251]
[1761076981356,1.5552,4001.9,4001.3,2.49917872]
[1761076982067,4.0540205,4001.9,4001.1,0.2139]
[1761076982266,1.5552,4001.9,4001.3,2.49917719]
[1761076982470,1.5552,4001.9,4001.4,2.49911603]
[1761076982839,1.5552,4001.9,4001.1,0.6522]
[1761076983042,0.001,4002.1,4001.2,0.4632925]
[1761076983480,0.001,4002.1,4001.6,2.49898397]
[1761076983665,0.001,4002.1,4001.9,2.49875291]
[1761076983975,3.248,4002.1,4001.2,0.4383]
[1761076984272,3.248,4002.1,4001.8,2.49883104]
[1761076984471,3.248,4002.1,4001.2,0.4383]
[1761076984675,3.248,4002.1,4001.3,0.4383]
[1761076984876,3.248,4002.1,4001.7,2.49888117]
[1761076985055,0.001,4002.1,4001.8,2.49885182]
[1761076985256,0.001,4002.1,4001.8,2.49882975]
[1761076985562,0.001,4002.1,4001.7,2.49892285]
[1761076985761,0.001,4002.1,4002.0,2.49875062]
[1761076986168,0.001,4002.1,4002.0,2.96203812]
[1761076986371,0.001,4002.1,4002.0,3.48314099]
[1761076987663,0.001,4002.1,4002.0,3.04484099]
[1761076987867,0.001,4002.1,4002.0,2.49875062]
[1761076989764,0.001,4002.1,4002.0,2.93705062]
[1761076989969,0.001,4002.1,4002.0,2.96203812]
[1761076990366,0.001,4002.1,4002.0,2.93705062]
[1761076990889,0.001,4002.1,4002.0,2.96203812]
[1761076991054,0.001,4002.1,4002.0,5.38762849]
[1761076991387,0.001,4002.1,4002.0,8.60564099]
[1761076991589,0.001,4002.1,4002.0,3.80744099]
[1761076991768,0.001,4002.1,4002.0,7.05044099]
[1761076993366,0.001,4002.1,4002.0,3.80744099]
[1761076993573,0.001,4002.1,4002.0,7.05244099]
[1761076993891,0.001,4002.1,4002.0,7.05144099]
[1761076996076,0.001,4002.1,4002.0,11.75144099]
[1761076999910,0.001,4002.1,4002.0,11.74744099]
[1761077004018,0.001,4002.1,4002.0,3.80744099]
[1761077004224,0.001,4002.1,4001.4,0.31514408]
[1761077004225,3.344384,4002.0,4000.0,2.02499625]
[1761077004520,3.344384,4002.0,4000.0,0.252]
[1761077004521,18.206706,4001.5,4000.0,0.252]
[1761077004745,1.5552,4001.0,4000.0,0.252]
[1761077004887,2.49983893,4000.3,4000.0,0.252]
[1761077005090,5.8198305,4000.1,4000.0,0.252]
[1761077005426,35.40585996,4000.1,4000.0,0.251]
[1761077005629,3.00706751,3999.7,3997.7,0.229]
[1761077005785,12.231005,3999.7,3997.6,0.24]
[1761077005987,0.0577,3999.8,3999.1,2.50055223]
[1761077006310,0.66053446,4001.2,3997.7,0.02501438]
[1761077006311,1.5552,4000.4,3999.7,2.50018751]
[1761077006485,2.65751348,4001.9,3999.8,0.02500125]
[1761077006486,0.099,4000.6,3999.8,0.02500125]
[1761077006690,2.49911792,4001.5,3999.8,0.02500125]
[1761077006691,3.056,4001.5,4000.6,2.49957055]
[1761077007016,3.056,4001.5,3999.8,0.02500125]
[1761077007017,0.1562,4001.4,4000.5,2.49962555]
[1761077007187,0.1562,4001.4,4000.5,2.49967099]
[1761077007188,2.65533568,4001.4,4000.5,2.49967099]
[1761077007384,0.1562,4001.4,4000.7,2.4995552]
[1761077007595,0.1562,4001.4,4000.8,2.49949497]
[1761077007801,0.1562,4001.4,4000.1,0.229]
[1761077007995,0.1562,4001.4,4000.1,0.89737013]
[1761077008413,0.1562,4001.4,4000.6,2.49957437]
[1761077008628,0.1562,4001.4,4000.1,0.66837013]
[1761077008816,1.5552,4001.2,4000.3,2.49976076]
[1761077009001,1.5552,4001.2,4000.3,2.49975477]
[1761077009202,1.7114,4001.1,4000.4,2.49974124]
[1761077009503,0.1562,4001.1,4000.0,0.002]
[1761077009836,0.60588,4001.4,4000.1,0.229]
[1761077010002,0.60588,4001.4,4000.5,2.4996414]
[1761077010343,0.099,4001.3,4000.4,2.49974166]
[1761077010629,0.099,4001.3,4000.1,0.229]
[1761077010834,0.099,4001.3,4000.5,2.49968222]
[1761077011008,0.099,4001.3,4000.6,2.49962302]
[1761077011198,0.099,4001.3,4000.0,0.002]
[1761077011631,0.099,4001.3,4000.6,2.49960949]
[1761077011832,0.099,4001.3,4000.7,2.49954495]
[1761077012033,0.099,4001.3,4000.1,2.72893265]
[1761077012278,0.66558,4001.9,4000.2,0.54809371]
[1761077012533,2.06208,4001.7,4001.2,2.49924963]
[1761077012749,2.16108,4001.7,4001.1,2.49929731]
[1761077012948,0.099,4001.6,4001.1,2.49929731]
[1761077013123,0.099,4001.6,4001.0,2.49936127]
[1761077013508,0.099,4001.6,3999.1,1.5552]
[1761077013509,0.50688,4001.2,3999.1,1.5552]
[1761077013728,0.50688,4001.0,4000.2,2.49985724]
[1761077013925,3.4122,4000.9,4000.2,2.49985724]
[1761077014126,0.50688,4000.7,3999.0,0.229]
[1761077014330,0.0577,4000.1,3999.6,2.50223766]
[1761077014504,0.0577,4000.1,3999.6,0.002]
[1761077014710,0.1567,4000.1,3999.6,0.002]
[1761077015106,0.1567,4000.1,3999.7,2.50018618]
[1761077015421,0.1567,4000.1,3999.6,0.002]
[1761077015422,3.4127,4000.1,3999.6,2.5022428]
[1761077015826,3.4127,4000.1,3999.9,2.50006073]
[1761077015827,3.3137,4000.1,3999.9,2.50006073]
[1761077016054,3.3137,4000.1,3999.6,0.002]
[1761077016258,3.3137,4000.1,3999.8,2.50012389]
[1761077016650,3.3137,4000.1,3999.7,2.50012707]
[1761077016845,3.3137,4000.1,3999.8,2.50012342]
[1761077017050,3.3137,4000.1,3999.8,2.50012093]
[1761077017249,3.3137,4000.1,3999.9,2.50001181]
[1761077017429,3.3137,4000.1,4000.0,2.502]
[1761077018832,0.50688,4000.9,4000.0,0.002]
[1761077019061,3.3127,4000.8,4000.1,2.4999375]
[1761077019261,3.3127,4000.8,4000.3,2.4997561]
[1761077019785,2.10591035,4001.9,4000.1,0.229]
[1761077019968,1.5552,4001.4,4000.7,2.49954462]
[1761077020264,0.0577,4000.8,4000.2,2.499875]
[1761077020433,0.0577,4000.8,4000.0,0.002]
[1761077020635,0.1567,4000.8,4000.0,2.5019941]
[1761077020833,0.1567,4000.8,4000.1,2.4999375]
[1761077021046,0.1567,4000.8,4000.3,2.49981121]
[1761077021334,0.1567,4000.8,4000.4,2.49970235]
[1761077021761,0.0577,4000.8,4000.7,2.49956257]
[1761077021964,0.0577,4000.9,4000.2,0.229]
[1761077022160,0.0577,4000.9,4000.4,2.49973169]
[1761077022361,0.0577,4000.9,4000.1,0.229]
[1761077022561,0.0577,4000.9,4000.7,2.49953128]
[1761077022762,0.0577,4000.9,4000.1,0.229]
[1761077022763,0.0577,4000.9,4000.6,2.49958136]
[1761077023272,0.0577,4000.9,4000.7,2.49950333]
[1761077023668,3.3107,4000.9,4000.1,0.229]
[1761077023839,3.3107,4000.9,4000.7,2.49955297]
[1761077024242,3.3107,4000.9,4000.8,2.49950009]
[1761077024442,3.3107,4000.9,4000.1,0.229]
[1761077024962,4.8659,4000.9,4000.8,2.49950009]
[1761077025164,4.8669,4000.9,4000.8,2.49950009]
[1761077025570,3.254,4000.9,4000.8,2.49950009]
[1761077026149,0.001,4000.9,4000.8,2.49950009]
[1761077029170,0.001,4000.9,4000.1,0.229]
[1761077029353,0.001,4000.9,4000.8,2.49950009]
[1761077029548,0.001,4000.9,4000.7,2.49953543]
[1761077029773,0.0587,4000.9,4000.3,2.49981251]
[1761077029978,0.0587,4000.9,4000.5,2.49966175]
[1761077030273,0.1577,4000.9,4000.4,2.49970332]
[1761077030473,0.099,4000.8,4000.0,2.5019511]
[1761077030679,24.549045,4000.7,4000.0,0.002]
[1761077030851,0.099,4000.8,4000.0,2.50195247]
[1761077030852,3.348,4000.6,4000.0,2.50195247]
[1761077031050,3.249,4000.6,4000.1,0.02499937]
[1761077031250,3.249,4000.6,4000.3,2.49981251]
[1761077031478,3.249,4000.6,4000.5,2.49968753]
[1761077031675,3.249,4000.6,4000.3,2.49981251]
[1761077031949,3.249,4000.6,4000.0,0.002]
[1761077032167,3.249,4000.6,4000.0,2.50194647]
[1761077032664,3.249,4000.6,4000.4,2.49972889]
[1761077033389,0.099,4000.5,4000.0,0.002]
[1761077033585,0.099,4000.5,4000.0,2.50194041]
[1761077033881,0.099,4000.5,4000.0,0.002]
[1761077034181,0.099,4000.5,4000.0,2.50199255]
[1761077034386,0.099,4000.5,4000.2,2.49983225]
[1761077034582,0.099,4000.5,4000.1,2.49993627]
[1761077034815,0.099,4000.5,4000.1,2.49988146]
[1761077034983,0.099,4000.5,4000.1,2.49991935]
[1761077035282,0.099,4000.5,4000.1,2.49993271]
[1761077036189,0.099,4000.5,4000.0,0.002]
[1761077036490,2.4999375,4000.1,4000.0,0.002]
[1761077036791,9.627258,4000.1,4000.0,0.002]
[1761077036987,30.15660835,4000.1,4000.0,0.002]
[1761077037290,20.75845335,4000.1,4000.0,0.002]
[1761077037489,9.520366,4000.1,4000.0,0.002]
[1761077037859,6.884214,4000.1,4000.0,0.002]
[1761077038058,10.735906,4000.1,4000.0,0.002]
[1761077038601,14.020235,4000.1,4000.0,0.002]
[1761077038985,26.256596,4000.1,4000.0,0.002]
[1761077039303,26.59363335,4000.1,4000.0,0.002]
[1761077039605,27.47933039,4000.1,4000.0,0.002]
[1761077040006,39.66214839,4000.1,4000.0,0.002]
[1761077040185,3.00706751,3999.7,3999.2,0.002]
[1761077040382,44.93462966,3999.7,3999.2,0.002]
[1761077040579,45.03265325,3999.7,3999.2,0.002]
[1761077040972,54.93274271,3999.7,3999.2,0.002]
[1761077041207,54.2684676,3999.7,3999.2,0.002]
[1761077041407,32.6857263,3999.7,3999.2,0.002]
[1761077041606,2.59350009,3999.7,3999.2,0.002]
[1761077041779,1.6542,3999.7,3999.2,0.002]
[1761077041974,28.04296351,3999.7,3999.2,0.002]
[1761077042204,27.56049291,3999.7,3999.2,0.002]
[1761077042374,26.89686886,3999.7,3999.2,0.002]
[1761077042576,3.00731757,3999.3,3999.2,0.002]
[1761077042896,0.50688,3998.1,3997.3,2.5016284]
[1761077043095,9.568361,3998.5,3997.4,0.50034422]
[1761077043096,0.50688,3997.9,3997.4,0.50034422]
[1761077043297,3.252,3997.8,3997.4,0.50034422]
[1761077043512,3.252,3997.8,3996.7,0.228]
[1761077043513,3.3516,3997.8,3996.7,0.228]
[1761077043813,0.50688,3997.7,3996.8,2.96239885]
[1761077043979,0.0996,3998.3,3996.8,2.96239885]
[1761077043980,0.0996,3998.7,3996.9,0.02501939]
[1761077044305,0.0996,3998.7,3997.7,2.5014178]
[1761077044306,2.574,3998.3,3997.7,2.5014178]
[1761077044603,1.5552,3998.2,3997.6,2.50145819]
[1761077044916,1.5552,3998.2,3997.5,0.228]
[1761077045095,1.5552,3998.2,3997.5,2.5015436]
[1761077045296,1.5552,3998.2,3997.2,0.228]
[1761077045619,4.05633494,3998.2,3997.4,2.50162506]
[1761077045920,1.5552,3998.2,3997.6,2.50147622]
[1761077046222,0.50688,3998.1,3997.2,0.6884]
[1761077046428,0.60648,3998.1,3997.2,2.72974254]
[1761077046911,0.1559,3998.4,3997.3,0.4604]
[1761077047114,3.251,3998.0,3997.3,0.7794112]
[1761077047409,3.251,3998.0,3997.7,2.50142778]
[1761077047619,3.251,3998.0,3997.7,2.50142909]
[1761077047916,3.251,3997.9,3997.7,2.50142909]
[1761077048118,3.251,3997.9,3997.8,2.50137575]
[1761077048300,3.251,3997.9,3997.6,2.50145257]
[1761077048498,3.251,3997.9,3997.3,0.4604]
[1761077048703,3.251,3997.9,3997.8,2.50137575]
[1761077049085,3.251,3997.9,3997.7,2.50143676]
[1761077049596,3.251,3997.9,3997.2,0.228]
[1761077049796,3.251,3997.9,3997.3,2.50168863]